{"text_format":"1","workbook":"xlsx","n_sheets":4,"sheets":["Élaboration","Adaptation&Diffusion","Som_AdapDiff","Instructions"],"not_rendered":{"charts":0,"images":0,"macros":0,"external_links":0,"defined_names":8,"comments":3,"pivot_tables":0},"unopened":[],"bounds":{"document_bytes":16777216,"sheet_cells":100000,"rows_first":2000,"rows_last":500,"rows_between":2000,"halvings":0,"cell_chars":16384,"cell_head_chars":4096},"cells_cut":0,"cells_raw":0,"read":"whole","date_system":"1900"}

{"sheet":"Élaboration","index":0,"n_rows":47,"n_cols":10,"rows_kept":47,"cut":false,"hidden":false,"merged":[[0,0,0,9]]}
["Budget de la demande de subvention"]
["Nature de la dépense","Description de la dépense","Barèmes","Coût unitaire","Unité","Unité","Unité","Taxes (100 % des taxes)","Montant demandé","Montant proposé"]
["Élaboration"]
["Honoraires et salaires"]
["Honoraires professionnels pour l'élaboration et l'adaptation du contenu de la formation ",null,"Maximum de 150 $/h",null,null,null,null,{"$f":"0.14975*(D5*E5*F5*G5)","v":0},{"$f":"D5*E5*F5*G5","v":0},{"$f":"D5*E5*F5*G5","v":0}]
["Salaire de base des experts",null,"Maximum de 150 $/h",null,null,null,null,null,{"$f":"D6*E6*F6*G6","v":0},{"$f":"D6*E6*F6*G6","v":0}]
["Déplacement des experts",null,"Barèmes du Conseil du trésor",null,null,null,null,null,0,0]
["Hébergement des experts",null,"Barèmes du Conseil du trésor",null,null,null,null,{"$f":"0.14975*(D8*E8*F8*G8)","v":0},0,0]
["Frais de repas des experts",null,"Barèmes du Conseil du trésor",null,null,null,null,null,0,0]
["Révision linguistique",null,"Coût réel",null,null,null,null,{"$f":"0.14975*(D10*E10*F10*G10)","v":0},0,0]
["Graphisme",null,"Coût réel",null,null,null,null,{"$f":"0.14975*(D11*E11*F11*G11)","v":0},0,0]
["Frais d'infographie",null,"Coût réel",null,null,null,null,{"$f":"0.14975*(D12*E12*F12*G12)","v":0},0,0]
["Les frais encourus pour l’adaptation du matériel pédagogique selon la nature du handicap",null,"Coût réel",null,null,null,null,{"$f":"0.14975*(D13*E13*F13*G13)","v":0},0,0]
["Diffusion"]
["Diffusion pour un groupe pilote"]
["Honoraires professionnels pour diffusion (groupe pilote)",null,"Maximum de 150 $/h",null,null,null,null,{"$f":"0.14975*(D16*E16*F16*G16)","v":0},{"$f":"D16*E16*F16*G16","v":0},{"$f":"D16*E16*F16*G16","v":0}]
["Honoraires professionnels liés à l’accompagnement et à l’interprétation de la formation de personnes sourdes et malentendantes",null,"Maximum de 150 $/h",null,null,null,null,{"$f":"0.14975*(D17*E17*F17*G17)","v":0},{"$f":"D17*E17*F17*G17","v":0},{"$f":"D17*E17*F17*G17","v":0}]
["Salaire de base des participants (groupe pilote)",null,"Maximum de 25 $/h",null,null,null,null,null,0,0]
["Déplacement"]
["Déplacement du formateur",null,"Barèmes du Conseil du trésor",null,null,null,null,null,{"$f":"D20*E20*F20*G20","v":0},{"$f":"D20*E20*F20*G20","v":0}]
["Déplacement des participants (groupe pilote)",null,"Barèmes du Conseil du trésor",null,null,null,null,null,{"$f":"D21*E21*F21*G21","v":0},{"$f":"D21*E21*F21*G21","v":0}]
["Autres frais de déplacement (à spécifier)",null,"Barèmes du Conseil du trésor",null,null,null,null,{"$f":"0.14975*(D22*E22*F22*G22)","v":0},0,0]
["Autres frais de déplacement (à spécifier)",null,"Barèmes du Conseil du trésor",null,null,null,null,{"$f":"0.14975*(D23*E23*F23*G23)","v":0},0,0]
["Hébergement"]
["Hébergement du formateur",null,"Barèmes du Conseil du trésor",null,null,null,null,{"$f":"0.14975*(D25*E25*F25*G25)","v":0},{"$f":"D25*E25*F25*G25","v":0},{"$f":"D25*E25*F25*G25","v":0}]
["Hébergement des participants (groupe pilote)",null,"Barèmes du Conseil du trésor",null,null,null,null,{"$f":"0.14975*(D26*E26*F26*G26)","v":0},{"$f":"D26*E26*F26*G26","v":0},{"$f":"D26*E26*F26*G26","v":0}]
["Frais de repas"]
["Frais de repas du formateur",null,"Barèmes du Conseil du trésor",null,null,null,null,null,{"$f":"D28*E28*F28*G28","v":0},{"$f":"D28*E28*F28*G28","v":0}]
["Frais de repas des participants (groupe pilote)",null,"Barèmes du Conseil du trésor",null,null,null,null,null,{"$f":"D29*E29*F29*G29","v":0},{"$f":"D29*E29*F29*G29","v":0}]
["Matériel pédagogique"]
["Matériel pédagogique",null,"Coût réel",null,null,null,null,{"$f":"0.14975*(D31*E31*F31*G31)","v":0},{"$f":"D31*E31*F31*G31","v":0},{"$f":"D31*E31*F31*G31","v":0}]
["Frais d'impression",null,"Coût réel",null,null,null,null,0,{"$f":"D32*E32*F32*G32","v":0},{"$f":"D32*E32*F32*G32","v":0}]
["Frais de tests de classement",null,"Coût réel",null,null,null,null,{"$f":"0.14975*(D33*E33*F33*G33)","v":0},0,0]
["Équipement"]
["Location de salle incluant le matériel audiovisuel",null,"Coût réel",null,null,null,null,{"$f":"0.14975*(D35*E35*F35*G35)","v":0},{"$f":"D35*E35*F35*G35","v":0},{"$f":"D35*E35*F35*G35","v":0}]
["Frais d'utilisation d'une formation en ligne (LMS)",null,"Coût réel",null,null,null,null,0,{"$f":"D36*E36*F36*G36","v":0},{"$f":"D36*E36*F36*G36","v":0}]
["Location d'équipements",null,"Coût réel",null,null,null,null,0,0,0]
["Dépenses liées à l'administration du projet par le promoteur"]
["Salaire de base de la ressource interne du promoteur",null,"Coût réel",null,null,null,null,null,{"$f":"D39*E39*F39*G39","v":0},{"$f":"D39*E39*F39*G39","v":0}]
["Déplacement de la ressource interne du promoteur",null,"Barèmes du Conseil du trésor",null,null,null,null,null,{"$f":"D40*E40*F40*G40","v":0},{"$f":"D40*E40*F40*G40","v":0}]
["Hébergement de la ressource interne du promoteur",null,"Barèmes du Conseil du trésor",null,null,null,null,{"$f":"0.14975*(D41*E41*F41*G41)","v":0},0,0]
["Frais de repas de la ressource interne du promoteur",null,"Barèmes du Conseil du trésor",null,null,null,null,null,0,0]
["Promotion",null,"Coût réel",null,null,null,null,{"$f":"0.14975*(D43*E43*F43*G43)","v":0},0,0]
["Frais d'administration (maximum 10 % du montant admissible)",null,null,null,null,null,null,null,{"$f":"SUM(I5:I43)*0.1","v":0},{"$f":"+SUM(J5:J43)*0.1","v":0}]
["Taxes"]
["Remboursement des taxes admissibles",null,null,null,null,null,null,{"$f":"SUM(H5:H45)","v":0},{"$f":"H46*0.5","v":0},{"$f":"H46*0.5","v":0}]
["Total",null,null,null,null,null,null,null,{"$f":"SUM(I5:I46)","v":0},{"$f":"SUM(J5:J46)","v":0}]

{"sheet":"Adaptation&Diffusion","index":1,"n_rows":49,"n_cols":12,"rows_kept":49,"cut":false,"hidden":false,"merged":[[0,0,0,11]]}
["Budget de la demande de subvention"]
["Nature de la dépense","Description de la dépense","Barèmes","Coût unitaire","Unité","Unité","Unité","Montant demandé avant % de remboursement","Taux de remboursement","Taxes (100 % des taxes)","Montant demandé","Montant proposé"]
["Adaptation"]
["Honoraires professionnels pour l'adaptation de la formation ",null,"Maximum de 150 $/h",null,null,null,null,{"$f":"D4*E4*F4*G4","v":0},1,{"$f":"0.14975*(D4*E4*F4*G4)","v":0},{"$f":"H4*I4","v":0},{"$f":"(D4*E4*F4*G4)*I4","v":0}]
["Salaire de base des experts",null,"Maximum de 150 $/h",null,null,null,null,0,1,null,0,{"$f":"(D5*E5*F5*G5)*I5","v":0}]
["Déplacement des experts",null,"Barèmes du Conseil du trésor",null,null,null,null,0,1,null,0,{"$f":"(D6*E6*F6*G6)*I6","v":0}]
["Hébergement des experts",null,"Barèmes du Conseil du trésor",null,null,null,null,0,1,{"$f":"0.14975*(D7*E7*F7*G7)","v":0},0,{"$f":"(D7*E7*F7*G7)*I7","v":0}]
["Frais de repas des experts",null,"Barèmes du Conseil du trésor",null,null,null,null,0,1,null,0,{"$f":"(D8*E8*F8*G8)*I8","v":0}]
["Révision linguistique",null,"Coût réel",null,null,null,null,0,1,{"$f":"0.14975*(D9*E9*F9*G9)","v":0},0,{"$f":"(D9*E9*F9*G9)*I9","v":0}]
["Graphisme",null,"Coût réel",null,null,null,null,0,1,{"$f":"0.14975*(D10*E10*F10*G10)","v":0},0,{"$f":"(D10*E10*F10*G10)*I10","v":0}]
["Frais d'infographie",null,"Coût réel",null,null,null,null,0,1,{"$f":"0.14975*(D11*E11*F11*G11)","v":0},0,{"$f":"(D11*E11*F11*G11)*I11","v":0}]
["Les frais encourus pour l’adaptation du matériel pédagogique selon la nature du handicap",null,"Coût réel",null,null,null,null,{"$f":"D12*E12*F12*G12","v":0},1,{"$f":"0.14975*(D12*E12*F12*G12)","v":0},{"$f":"H12*I12","v":0},{"$f":"(D12*E12*F12*G12)*I12","v":0}]
["Diffusion"]
["Honoraires et salaires"]
["Honoraires professionnels pour la diffusion de la formation",null,"Maximum de 150 $/h",null,null,null,null,{"$f":"D15*E15*F15*G15","v":0},0.85,{"$f":"0.14975*(D15*E15*F15*G15)","v":0},{"$f":"H15*I15","v":0},{"$f":"(D15*E15*F15*G15)*I15","v":0}]
["Honoraires professionnels pour le coaching",null,"Maximum de 150 $/h",null,null,null,null,{"$f":"D16*E16*F16*G16","v":0},0.85,{"$f":"0.14975*(D16*E16*F16*G16)","v":0},{"$f":"H16*I16","v":0},{"$f":"(D16*E16*F16*G16)*I16","v":0}]
["Honoraires professionnels liés à l'accompagnement et à l'interprétation de la formation de personnes sourdes et malentendantes",null,"Maximum de 150 $/h",null,null,null,null,{"$f":"D17*E17*F17*G17","v":0},0.85,{"$f":"0.14975*(D17*E17*F17*G17)","v":0},{"$f":"H17*I17","v":0},{"$f":"(D17*E17*F17*G17)*I17","v":0}]
["Salaire de base des participants ",null,"Maximum de 25 $/h après application du taux de remboursement",null,null,null,null,{"$f":"D18*E18*F18*G18","v":0},0.85,null,{"$f":"IF(D18*I18>25,25*E18*F18*G18,D18*E18*F18*G18*I18)","v":0},{"$f":"IF(D18*I18>25,25*E18*F18*G18,D18*E18*F18*G18*I18)","v":0}]
["Déplacement"]
["Déplacement du formateur",null,"Barèmes du Conseil du trésor",null,null,null,null,{"$f":"D20*E20*F20*G20","v":0},0.85,null,{"$f":"H20*I20","v":0},{"$f":"(D20*E20*F20*G20)*I20","v":0}]
["Déplacement des participants ",null,"Barèmes du Conseil du trésor",null,null,null,null,0,0.85,null,0,{"$f":"(D21*E21*F21*G21)*I21","v":0}]
["Autres frais de déplacement (à spécifier)",null,"Barèmes du Conseil du trésor",null,null,null,null,0,0.85,{"$f":"0.14975*(D22*E22*F22*G22)","v":0},0,{"$f":"(D22*E22*F22*G22)*I22","v":0}]
["Autres frais de déplacement (à spécifier)",null,"Barèmes du Conseil du trésor",null,null,null,null,0,0.85,{"$f":"0.14975*(D23*E23*F23*G23)","v":0},0,{"$f":"(D23*E23*F23*G23)*I23","v":0}]
["Hébergement"]
["Hébergement du formateur",null,"Barèmes du Conseil du trésor",null,null,null,null,{"$f":"D25*E25*F25*G25","v":0},0.85,{"$f":"0.14975*(D25*E25*F25*G25)","v":0},{"$f":"H25*I25","v":0},{"$f":"(D25*E25*F25*G25)*I25","v":0}]
["Hébergement des participants ",null,"Barèmes du Conseil du trésor",null,null,null,null,{"$f":"D26*E26*F26*G26","v":0},0.85,0,{"$f":"H26*I26","v":0},{"$f":"(D26*E26*F26*G26)*I26","v":0}]
["Frais de repas"]
["Frais de repas du formateur",null,"Barèmes du Conseil du trésor",null,null,null,null,{"$f":"D28*E28*F28*G28","v":0},0.85,null,{"$f":"H28*I28","v":0},{"$f":"(D28*E28*F28*G28)*I28","v":0}]
["Frais de repas des participants",null,"Barèmes du Conseil du trésor",null,null,null,null,{"$f":"D29*E29*F29*G29","v":0},0.85,null,{"$f":"H29*I29","v":0},{"$f":"(D29*E29*F29*G29)*I29","v":0}]
["Matériel pédagogique"]
["Matériel pédagogique",null,"Coût réel",null,null,null,null,{"$f":"D31*E31*F31*G31","v":0},0.85,{"$f":"0.14975*(D31*E31*F31*G31)","v":0},{"$f":"H31*I31","v":0},{"$f":"(D31*E31*F31*G31)*I31","v":0}]
["Frais d'impression",null,"Coût réel",null,null,null,null,{"$f":"D32*E32*F32*G32","v":0},0.85,0,{"$f":"H32*I32","v":0},{"$f":"(D32*E32*F32*G32)*I32","v":0}]
["Frais de tests de classement",null,"Coût réel",null,null,null,null,{"$f":"D33*E33*F33*G33","v":0},0.85,{"$f":"0.14975*(D33*E33*F33*G33)","v":0},{"$f":"H33*I33","v":0},{"$f":"(D33*E33*F33*G33)*I33","v":0}]
["Équipement"]
["Location de salle incluant le matériel audiovisuel",null,"Coût réel",null,null,null,null,{"$f":"D35*E35*F35*G35","v":0},0.85,{"$f":"0.14975*(D35*E35*F35*G35)","v":0},{"$f":"H35*I35","v":0},{"$f":"(D35*E35*F35*G35)*I35","v":0}]
["Frais d'utilisation d'une formation en ligne (LMS)",null,"Coût réel",null,null,null,null,{"$f":"D36*E36*F36*G36","v":0},0.85,0,{"$f":"H36*I36","v":0},{"$f":"(D36*E36*F36*G36)*I36","v":0}]
["Location d'équipements",null,"Coût réel",null,null,null,null,{"$f":"D37*E37*F37*G37","v":0},0.85,0,{"$f":"H37*I37","v":0},{"$f":"(D37*E37*F37*G37)*I37","v":0}]
["Frais d'inscription"]
["Frais d'inscription à une formation",null,"Coût réel",null,null,null,null,{"$f":"D39*E39*F39*G39","v":0},0.85,{"$f":"0.14975*(D39*E39*F39*G39)","v":0},{"$f":"H39*I39","v":0},{"$f":"(D39*E39*F39*G39)*I39","v":0}]
["Dépenses liées à l'administration du projet par le promoteur"]
["Salaire de base de la ressource interne du promoteur",null,"Coût réel",null,null,null,null,{"$f":"D41*E41*F41*G41","v":0},1,null,{"$f":"H41*I41","v":0},{"$f":"(D41*E41*F41*G41)*I41","v":0}]
["Déplacement de la ressource interne du promoteur",null,"Barèmes du Conseil du trésor",null,null,null,null,{"$f":"D42*E42*F42*G42","v":0},1,null,{"$f":"H42*I42","v":0},{"$f":"(D42*E42*F42*G42)*I42","v":0}]
["Hébergement de la ressource interne du promoteur",null,"Barèmes du Conseil du trésor",null,null,null,null,{"$f":"D43*E43*F43*G43","v":0},1,{"$f":"0.14975*(D43*E43*F43*G43)","v":0},{"$f":"H43*I43","v":0},{"$f":"(D43*E43*F43*G43)*I43","v":0}]
["Frais de repas de la ressource interne du promoteur",null,"Barèmes du Conseil du trésor",null,null,null,null,{"$f":"D44*E44*F44*G44","v":0},1,null,{"$f":"H44*I44","v":0},{"$f":"(D44*E44*F44*G44)*I44","v":0}]
["Promotion",null,"Coût réel",null,null,null,null,{"$f":"D45*E45*F45*G45","v":0},1,{"$f":"0.14975*(D45*E45*F45*G45)","v":0},{"$f":"H45*I45","v":0},{"$f":"(D45*E45*F45*G45)*I45","v":0}]
["Frais d'administration (maximum 10 % du montant admissible)",null,null,null,null,null,null,{"$f":"SUM(H4:H45)*0.1","v":0},null,null,{"$f":"SUM(K4:K45)*0.1","v":0},{"$f":"SUM(L4:L45)*0.1","v":0}]
["Taxes"]
["Remboursement des taxes admissibles",null,null,null,null,null,null,{"$f":"SUM(J4:J46)","v":0},null,null,{"$f":"H48*0.5","v":0},{"$f":"H48*0.5","v":0}]
["Total",null,null,null,null,null,null,{"$f":"SUM(H4:H48)","v":0},null,null,{"$f":"SUM(K4:K48)","v":0},{"$f":"SUM(L4:L48)","v":0}]

{"sheet":"Som_AdapDiff","index":2,"n_rows":50,"n_cols":6,"rows_kept":50,"cut":false,"hidden":false,"merged":[[0,0,0,5]]}
["Budget de la demande de subvention - Sommaire"]
[]
["Nature de la dépense","Montant demandé avant % de remboursement","Taux de remboursement","Taxes (100 % des taxes)","Montant demandé","Montant proposé"]
["Adaptation"]
["Honoraires professionnels pour l'adaptation de la formation ",null,1]
["Salaire de base des experts",null,1]
["Déplacement des experts",null,1]
["Hébergement des experts",null,1]
["Frais de repas des experts",null,1]
["Révision linguistique",null,1]
["Graphisme",null,1]
["Frais d'infographie",null,1]
["Les frais encourus pour l’adaptation du matériel pédagogique selon la nature du handicap",null,1]
["Diffusion"]
["Honoraires et salaires"]
["Honoraires professionnels pour la diffusion de la formation",null,0.85]
["Honoraires professionnels pour le coaching",null,0.85]
["Honoraires professionnels liés à l'accompagnement et à l'interprétation de la formation de personnes sourdes et malentendantes",null,0.85]
["Salaire de base des participants ",null,0.85]
["Déplacement"]
["Déplacement du formateur",null,0.85]
["Déplacement des participants ",null,0.85]
["Autres frais de déplacement (à spécifier)",null,0.85]
["Autres frais de déplacement (à spécifier)",null,0.85]
["Hébergement"]
["Hébergement du formateur",null,0.85]
["Hébergement des participants ",null,0.85]
["Frais de repas"]
["Frais de repas du formateur",null,0.85]
["Frais de repas des participants",null,0.85]
["Matériel pédagogique"]
["Matériel pédagogique",null,0.85]
["Frais d'impression",null,0.85]
["Frais de tests de classement",null,0.85]
["Équipement"]
["Location de salle incluant le matériel audiovisuel",null,0.85]
["Frais d'utilisation d'une formation en ligne",null,0.85]
["Location d'équipements",null,0.85]
["Frais d'inscription"]
["Frais d'inscription à une formation",null,0.85]
["Dépenses liées à l'administration du projet par le promoteur"]
["Salaire de base de la ressource interne du promoteur",null,1]
["Déplacement de la ressource interne du promoteur",null,1]
["Hébergement de la ressource interne du promoteur",null,1]
["Frais de repas de la ressource interne du promoteur",null,1]
["Promotion",null,1]
["Frais d'administration (maximum 10 % du montant admissible)",{"$f":"SUM(B5:B46)*0.1","v":0},null,null,{"$f":"SUM(E5:E46)*0.1","v":0},{"$f":"SUM(F5:F46)*0.1","v":0}]
["Taxes"]
["Remboursement des taxes admissibles",{"$f":"SUM(D5:D47)","v":0}]
["Total",{"$f":"SUM(B16:B49)","v":0},null,null,{"$f":"SUM(E5:E49)","v":0},{"$f":"SUM(F5:F49)","v":0}]

{"sheet":"Instructions","index":3,"n_rows":50,"n_cols":1,"rows_kept":50,"cut":false,"hidden":false,"merged":[[34,0,34,10],[27,0,27,10],[28,0,28,10],[32,0,32,10],[30,0,30,10],[31,0,31,10],[25,0,25,10],[15,0,17,10],[24,0,24,10],[26,0,26,10],[33,0,33,10],[29,0,29,10],[8,0,8,10],[3,0,3,10],[0,0,0,10],[1,0,1,10],[5,0,5,10],[6,0,6,10],[7,0,7,10],[9,0,9,10],[12,0,12,10],[20,0,20,10],[22,0,22,10],[23,0,23,10],[13,0,13,10],[14,0,14,10],[18,0,18,10],[19,0,19,10],[11,0,11,10],[50,0,50,10],[35,0,35,10],[38,0,38,10],[41,0,41,10],[44,0,44,10],[47,0,47,10],[48,0,48,10],[49,0,49,10],[40,0,40,10],[42,0,42,10],[43,0,43,10],[45,0,45,10],[39,0,39,10],[36,0,36,10],[37,0,37,10],[46,0,46,10]]}
["Budget de la demande de subvention"]
["- Instructions -"]
[]
["1. Utilisation des onglets "]
[]
["A. Choisir l'onglet approprié en fonction du volet visé par la demande de subvention et supprimer les autres non utilisés."]
["B. Compléter dans l'onglet approprié le budget de la demande de subvention. Pour un projet qui comprend la réalisation de plusieurs activités de formation, il faut compléter un budget distinct par formation. "]
["C. Compiler dans l'onglet Som_AdapDiff les montants totaux demandés par poste budgétaire si la demande de subvention vise plusieurs formations."]
[]
["2. Barèmes du programme "]
[]
["Coût réel: Lorsque le barème prévoit qu'il s'agit du coût réel, le caractère raisonnable de la dépense et l'effort du promoteur pour la recherche du meilleur prix seront pris en considération pour définir le coût admissible à la subvention.\n"]
["Honoraires professionnels: Selon la complexité des travaux à accomplir, le remboursement des dépenses pourrait atteindre 150 $ l’heure."]
["Salaire de base des participants: jusqu’à un maximum de 25 $ l’heure par participant après application du taux de remboursement."]
["Méthode de calcul du taux de remboursement à 85 %:"]
["Le taux de remboursement est calculé après l’application des barèmes du programme. Par exemple, si les honoraires professionnels d'une formatrice ou du formateur sont de 175 $ l’heure, on applique d’abord le maximum de 150 $ l’heure, puis on calcule le taux de remboursement de 85 %. Ainsi, la contribution du Fonds est d’un maximum de 75 $ l’heure (150 $/h x 85 % = 127,5 $/h)."]
[]
[]
["Pour le remboursement des salaires des participants, la méthode est la suivante : on calcule 85 % du taux horaire de la participante ou du participant, jusqu’à concurrence de 25 $ l’heure. Ainsi, pour une personne dont le salaire horaire est de 18 $ l’heure, la contribution du Fonds sera d’un maximum de 15,3 $ l’heure (18 $/h x 85 % = 15,3 $/h). Pour une personne dont le salaire est de 50 $ l’heure, la contribution du Fonds sera d’un maximum de 25 $ l’heure (50 $/h x 85 % = 42,5 $/h, le taux horaire maximal admissible est de 25 $/h)."]
[]
["3. Instructions pour compléter le budget de la demande de subvention"]
[]
["Colonne Nature de la dépense"]
["Les dépenses admissibles sont présentées par catégorie. Il est important de ne pas changer l'appellation des postes budgétaires."]
["Veuillez compléter seulement les lignes pour les postes budgétaires visés par votre demande de subvention. "]
[]
["Colonne Description de la dépense"]
["Décrire le détail des calculs en utilisant les unités de mesure appropriées. Voici des exemples:"]
[]
["Honoraires professionnels : 90 $/h x 16 h x 2 groupes"]
["Salaire de base des participants: 13,10 $/h x 16 h x 12 participants"]
["Déplacement du formateur: 0,635 $/km x 600 km x 2 déplacements"]
[]
["Colonne Coût unitaire"]
["Inscrire le premier facteur de la multiplication présenté dans la colonne Description de la dépense pour chaque catégorie de dépense (Ex:  taux horaire des formateurs et des participants, coût/participant pour le matériel didactique, coût/km pour les frais de déplacement, le coût/jour pour les frais d'hébergement et la location de salle, etc.). C'est le coût unitaire en $."]
[]
["Colonnes Unité"]
["Inscrire les autres facteurs de multiplication. Pour les cases vides, inscrire le chiffre 1."]
[]
["Colonne Montant demandé avant % de remboursement"]
["Le montant demandé avant taxes est calculé automatiquement en tenant compte des barèmes du programme."]
[]
["Colonne Taux de remboursement"]
["Le taux de remboursement est déjà inscrit."]
[]
["Colonne Taxes (100 % des taxes)"]
["Les taxes sont calculées automatiquement pour les dépenses taxables. La portion remboursable des taxes est calculée automatiquement à la ligne Remboursement des taxes admissibles. Il est présumé que le promoteur recevra un remboursement de Revenu Québec à hauteur de 50%. Ainsi, le montant prévu par l'aide financière est le montant restant à la charge du promoteur (50%). Si l'assujettissement de votre organisme diffère, ce taux peut être modifié selon les pièces présentées au soutien de votre demande.\nÀ la reddition de comptes de votre projet, il est attendu que le promoteur déclare son assujettissement à la TPS/TVH et à la TVQ. Le taux déclaré sera considéré pour déterminer les taxes admissibles à l'aide financière en permettant un dépassement du montant accordé jusqu'à concurrence du trop versé calculé pour le reste des postes budgétaires. Aucun montant supplémentaire à l’aide financière accordée ne pourra donc être spécifiquement versé pour rembourser l’ensemble des taxes; ce remboursement ne pourra être couvert que par l’aide financière accordée."]
[]
["Colonne Montant demandé"]
["Le montant demandé est calculé automatiquement en tenant compte du taux de remboursement applicable."]